bitfinex/quotes_ETHUSD_20260114
["timestamp","ask_amount","ask_price","bid_price","bid_amount"]
[1768419058646,18.111,3372.6,3371.3,0.1633429]
[1768419058844,5.92999384,3372.7,3371.4,0.1633429]
[1768419059055,5.92999384,3372.7,3370.9,0.02966566]
[1768419059274,5.92999384,3372.7,3371.0,1.11679931]
[1768419059582,8.89499076,3372.7,3371.1,0.16364136]
[1768419059756,8.89499076,3372.7,3370.5,1.47479724]
[1768419059757,3.9537138,3372.6,3370.5,1.47479724]
[1768419060079,13.92410596,3372.6,3370.9,2.96650086]
[1768419060275,13.92410596,3372.6,3371.0,0.16384394]
[1768419060747,13.92410596,3372.6,3371.1,0.0296639]
[1768419061074,0.395,3373.1,3371.2,0.16384394]
[1768419061275,0.395,3373.1,3371.3,0.19350608]
[1768419061479,0.395,3373.1,3370.9,0.08336807]
[1768419061480,5.92943966,3373.0,3371.4,3.12996733]
[1768419061651,8.89415949,3373.0,3371.5,0.16384394]
[1768419061844,5.92943966,3373.0,3371.6,0.31299673]
[1768419062177,2.91471983,3373.0,3371.7,0.19350256]
[1768419062482,5.92768226,3374.0,3371.8,0.24721201]
[1768419062777,12.8154399,3374.1,3372.1,1.47479724]
[1768419062966,0.002,3372.8,3372.2,0.16384394]
[1768419063164,0.002,3372.8,3372.3,0.16384394]
[1768419063469,0.002,3372.8,3372.4,1e-08]
[1768419063670,0.002,3372.8,3371.6,3.27893018]
[1768419063866,0.002,3372.8,3371.7,0.80163386]
[1768419064172,0.002,3372.8,3371.7,0.77197524]
[1768419065377,0.002,3372.8,3371.7,1.47479724]
[1768419065585,24.61466196,3372.7,3371.4,1.47479724]
[1768419065874,24.61466196,3372.7,3370.5,2.54411866]
[1768419065875,3.92410596,3372.3,3370.5,1.52874142]
[1768419066053,20.690556,3372.0,3369.6,6.56732052]
[1768419066262,3.9537138,3371.9,3369.8,0.85352096]
[1768419066449,24.61466196,3371.6,3369.6,2.96763861]
[1768419066647,3.92410596,3371.6,3369.7,2.96860952]
[1768419066848,3.92410596,3372.7,3370.2,0.08336807]
[1768419067157,3.92410596,3372.7,3370.6,0.08336807]
[1768419067460,2.96507145,3372.6,3370.8,6.01667767]
[1768419067676,2.96507145,3372.6,3370.9,0.61000457]
[1768419067883,2.96690121,3372.8,3371.2,0.08336807]
[1768419068052,0.002,3372.8,3371.4,0.08336807]
[1768419068252,0.002,3372.8,3371.5,0.02966038]
[1768419068493,7.452e-05,3372.8,3371.8,0.08336807]
[1768419068663,5.92856084,3373.5,3371.8,0.08336807]
[1768419068853,2.96428042,3373.5,3371.8,0.08336807]
[1768419069259,0.002,3374.2,3371.8,0.08336807]
[1768419069260,3.696,3374.1,3371.8,0.08336807]
[1768419069455,3.36166546,3374.2,3372.2,0.08336807]
[1768419069656,6.32540504,3374.2,3372.2,0.08336807]
[1768419070252,3.36166546,3374.2,3372.4,0.08336807]
[1768419070587,5.92940504,3374.2,3372.4,0.08336807]
[1768419070964,2.96566546,3374.2,3372.4,0.08336807]
[1768419071284,2.96566546,3374.2,3372.5,2.18321699]
[1768419071506,2.96566546,3374.2,3372.6,1.96688905]
[1768419071780,0.002,3374.2,3372.7,5.92996708]
[1768419072557,0.002,3374.2,3372.7,7.89685613]
[1768419072892,0.002,3374.2,3372.7,2.96498354]
[1768419073185,0.002,3374.2,3372.8,0.81132533]
[1768419073393,6.88627901,3375.9,3373.3,0.08336807]
[1768419073689,3.92410596,3375.3,3373.1,6.31926388]
[1768419074186,3.92410596,3375.2,3373.1,3.35463194]
[1768419074375,3.92410596,3375.2,3373.4,0.08336807]
[1768419074880,3.9537138,3375.2,3373.4,0.08336807]
[1768419075079,0.003,3374.5,3373.5,0.39]
[1768419075387,0.003,3374.5,3373.7,0.08336807]
[1768419075564,0.003,3374.5,3373.7,3.04746479]
[1768419075881,0.002,3373.9,3373.8,0.34374648]
[1768419076082,0.002,3374.2,3373.7,3.04739326]
[1768419076254,0.003,3374.5,3373.9,0.08336807]
[1768419076454,0.002,3375.6,3374.1,0.08336807]
[1768419077183,3.92410596,3375.4,3373.9,0.39]
[1768419077484,0.02960784,3375.3,3373.7,0.39]
[1768419077690,5.92557478,3375.2,3373.7,3.68952879]
[1768419077888,5.92557478,3375.2,3373.2,0.54048891]
[1768419078057,3.92410596,3375.1,3373.1,0.39]
[1768419078385,3.92410596,3374.7,3372.7,0.08336807]
[1768419078560,0.02960784,3374.6,3372.7,0.08336807]
[1768419078760,3.92410596,3374.7,3372.8,2.96483991]
[1768419079080,3.92410596,3374.7,3373.1,3.04793737]
[1768419079281,8.88836217,3375.2,3373.3,0.08336807]
[1768419079685,22.81246813,3375.2,3373.3,0.08336807]
[1768419079985,8.88888888,3375.0,3373.3,0.08336807]
[1768419080895,0.02960784,3374.9,3373.3,0.08336807]
[1768419081200,8.88888888,3375.0,3373.3,3.04781663]
[1768419081368,8.88888888,3375.0,3373.3,3.69639733]
[1768419081777,5.92575034,3375.1,3373.6,2.96419255]
[1768419082502,5.95535818,3375.1,3373.6,2.96419255]
[1768419082889,5.92575034,3375.1,3373.6,5.9283851]
[1768419083397,5.92575034,3375.1,3373.7,0.08336807]
[1768419083597,5.92575034,3375.1,3373.7,0.73188691]
[1768419083998,2.96287517,3375.1,3373.9,0.08336807]
[1768419084496,2.96287517,3375.1,3373.7,0.73188691]
[1768419084497,0.02960784,3375.0,3373.7,1.03851884]
[1768419084700,3.87244383,3374.8,3372.6,3.04842869]
[1768419084906,3.87244383,3374.4,3372.6,0.08336807]
[1768419085112,20.690556,3374.3,3372.6,0.08336807]
[1768419085292,3.87244383,3374.1,3372.6,0.08336807]
[1768419085771,3.87244383,3374.1,3372.6,3.04837801]
[1768419085977,0.395,3374.4,3372.6,3.04837801]
[1768419085978,0.395,3374.4,3372.6,0.68472741]
[1768419086177,0.395,3374.4,3372.6,0.08336807]
[1768419086394,0.395,3374.4,3372.8,2.96483586]
[1768419086591,0.395,3374.4,3372.9,2.96480459]
[1768419086990,5.92715526,3374.3,3372.7,5.92996708]
[1768419087391,5.92715526,3374.3,3372.7,2.96498354]
[1768419087572,5.92715526,3374.3,3372.8,0.60430529]
[1768419088101,5.92715526,3374.3,3373.6,0.001]
[1768419088300,5.92715526,3374.3,3372.8,0.60430529]
[1768419088611,3.90205167,3374.2,3372.6,0.08336807]
[1768419089018,8.89073289,3374.3,3372.6,3.04843701]
[1768419089019,3.87244383,3374.0,3372.6,3.04843701]
[1768419089516,3.87244383,3374.0,3372.6,0.08336807]
[1768419090909,3.87244383,3374.0,3372.6,3.04843811]
[1768419091105,5.92785796,3373.9,3372.6,3.04843811]
[1768419091307,5.92785796,3373.9,3372.6,3.65814138]
[1768419091880,2.96392898,3373.9,3372.6,3.65814138]
[1768419092206,5.92785796,3373.9,3372.6,3.65814138]
[1768419093101,2.96392898,3373.9,3372.6,3.65814138]
[1768419093699,2.96392898,3373.9,3372.6,6.62321283]
[1768419093916,3.87244383,3374.6,3372.8,0.08336807]
[1768419094080,2.96516434,3374.8,3373.2,0.08336807]
[1768419094409,5.92832868,3374.8,3373.3,0.39]
[1768419095017,0.002,3374.8,3373.4,5.92873658]
[1768419095316,0.002,3374.8,3373.4,6.01210465]
[1768419095513,0.002,3374.8,3373.5,0.94499482]
[1768419095887,0.002,3374.8,3373.4,0.08336807]
[1768419097023,0.002,3374.8,3373.5,2.96428042]
[1768419097387,0.002,3374.8,3373.5,5.92856084]
[1768419097588,0.002,3374.8,3373.7,0.08336807]
[1768419098017,3.87444383,3374.8,3373.4,0.08336807]
[1768419098224,3.90205167,3374.7,3372.8,0.08336807]
[1768419098514,3.87244383,3374.7,3372.8,0.08336807]
[1768419098720,3.87244383,3374.7,3373.2,2.96450974]
[1768419099090,5.92662834,3374.6,3373.0,0.08336807]
[1768419099288,0.02960784,3374.5,3373.0,0.47336807]
[1768419099494,12.76238634,3374.6,3373.0,3.43807257]
[1768419099811,12.76238634,3374.6,3373.0,4.08669856]
[1768419100199,9.79907217,3374.6,3373.0,4.08669856]
[1768419100405,9.79907217,3374.6,3373.3,0.001]
[1768419100806,0.002,3374.5,3373.3,0.001]
[1768419101007,3.87444383,3374.5,3373.3,0.001]
[1768419101213,3.87244383,3374.3,3373.3,0.001]
[1768419101919,3.87244383,3374.1,3372.5,0.08336807]
[1768419102110,0.002,3374.5,3372.5,0.08336807]
[1768419102111,3.90205167,3374.0,3372.5,0.08336807]
[1768419102305,3.87244383,3374.0,3372.5,0.08336807]
[1768419102708,0.02960784,3373.9,3372.5,0.08336807]
[1768419102914,3.87244383,3373.9,3372.5,0.08336807]
[1768419103120,5.92803366,3373.8,3372.5,0.08336807]
[1768419104814,5.87803366,3373.8,3372.5,0.08336807]
[1768419105309,3.90205167,3373.7,3372.2,0.08336807]
[1768419105515,3.87244383,3373.7,3372.4,0.08336807]
[1768419105710,9.75047749,3373.8,3372.6,0.08336807]
[1768419106037,9.75047749,3373.8,3372.8,0.08336807]
[1768419106333,9.75047749,3373.8,3372.9,0.02964807]
[1768419106532,9.75047749,3373.8,3372.8,0.08336807]
[1768419106834,9.75047749,3373.8,3372.9,0.02964807]
[1768419106835,6.20488417,3373.8,3372.9,0.02964807]
[1768419107040,2.33244034,3373.8,3372.6,0.61267995]
[1768419107338,9.79963077,3374.3,3372.0,8.89674883]
[1768419107533,12.76324008,3374.3,3372.0,5.93114978]
[1768419107739,3.90205167,3374.2,3372.0,5.93114978]
[1768419107918,3.90205167,3374.2,3372.1,0.39]
[1768419108115,3.90205167,3374.2,3372.0,2.96555073]
[1768419108116,3.87244383,3374.2,3372.0,2.96555073]
[1768419108317,3.87244383,3374.1,3372.1,0.98312314]
[1768419108730,3.87244383,3374.1,3372.1,0.59312314]
[1768419109030,3.87244383,3374.1,3372.0,2.96555073]
[1768419109202,3.87244383,3373.9,3372.1,0.39]
[1768419109400,0.02960784,3374.0,3371.5,2.46075059]
[1768419109401,3.87244383,3373.7,3371.9,2.96565543]
[1768419109634,3.87244383,3373.6,3371.4,5.66902894]
[1768419109830,3.87244383,3373.6,3372.0,0.39]
[1768419110205,3.87244383,3373.6,3371.4,2.46075059]
[1768419110206,3.87244383,3373.6,3372.1,0.33556734]
[1768419110403,3.87244383,3373.6,3372.0,3.3555908]
[1768419110633,3.90205167,3373.6,3372.0,0.39]
[1768419110835,3.90205167,3373.6,3371.3,2.46075059]
[1768419111049,3.90205167,3373.6,3370.9,7.02732539]
[1768419111050,3.90205167,3373.6,3371.7,2.96583676]
[1768419111233,3.87244383,3373.6,3371.7,2.96583676]
[1768419111430,4.16732313,3373.4,3371.8,0.5931858]
[1768419112262,4.16732313,3373.4,3371.1,2.96632791]
[1768419112422,4.16732313,3373.4,3370.9,5.6440068]
[1768419112423,4.16732313,3373.1,3370.9,0.21675794]
[1768419112615,14.8214021,3373.5,3370.9,0.21675794]
[1768419112616,4.16732313,3372.9,3370.9,0.60675794]
[1768419112813,20.690556,3372.8,3370.9,0.21675794]
[1768419113136,4.16732313,3372.6,3370.8,0.39]
[1768419113447,4.16732313,3372.4,3372.0,0.001]
[1768419113652,4.16732313,3372.4,3370.7,0.39]
[1768419113947,4.16732313,3372.4,3370.8,2.96660508]
[1768419114243,4.16732313,3372.4,3370.8,3.35660508]
[1768419114421,4.16732313,3372.4,3370.8,0.39]
[1768419114621,4.16732313,3372.4,3370.9,0.33567082]
[1768419115143,4.16732313,3372.4,3370.1,2.96721832]
[1768419115144,14.16732313,3372.4,3369.4,3.128]
[1768419115442,4.16732313,3372.1,3370.2,2.96711556]
[1768419115613,5.9311981,3372.0,3370.0,0.39]
[1768419115813,10.09852123,3372.0,3370.1,5.934542]
[1768419116058,10.09852123,3372.0,3370.2,1.28019318]
[1768419117145,10.09852123,3372.0,3370.3,5.93418982]
[1768419117635,4.16732313,3372.6,3370.4,0.02967006]
[1768419117841,8.89547811,3372.5,3370.3,5.93418982]
[1768419118067,8.89547811,3372.5,3370.3,8.90128473]
[1768419118230,8.89547811,3372.5,3370.4,1.33916622]
[1768419118428,13.06280124,3372.5,3370.4,1.33916622]
[1768419118628,4.16732313,3372.4,3370.5,0.39]
[1768419118829,4.16732313,3372.3,3370.5,0.39]
[1768419119232,4.16732313,3372.1,3370.4,0.39]
[1768419119653,4.16732313,3371.9,3370.0,0.39]
[1768419119862,4.16732313,3371.9,3370.1,0.63250286]
[1768419120870,4.16732313,3371.7,3370.1,0.63250286]
[1768419121248,5.93190176,3371.6,3370.1,0.63250286]
[1768419121450,4.16732313,3371.5,3370.1,0.63250286]
[1768419121662,5.93190176,3371.6,3370.2,2.96716154]
[1768419121854,10.09922489,3371.6,3369.7,0.001]
[1768419122140,2.96588194,3371.7,3370.2,2.96715381]
[1768419122338,4.16732313,3373.1,3370.3,3.19742689]
[1768419122685,4.16732313,3373.1,3370.6,3.19742689]
[1768419122843,4.16732313,3374.0,3371.3,3.19462788]
[1768419123032,0.398,3374.5,3371.6,3.19462788]
[1768419123230,5.92711786,3374.4,3372.0,3.19462788]
[1768419123478,4.16732313,3374.3,3371.9,8.897061]
[1768419123660,4.16732313,3374.3,3372.1,0.39]
[1768419123834,8.89067679,3374.4,3372.2,1.3187061]
[1768419123835,4.19693097,3374.2,3372.2,1.3187061]
[1768419124241,4.19693097,3374.2,3372.2,0.9287061]
[1768419124552,4.16732313,3373.6,3371.9,0.39]
[1768419124878,4.16732313,3373.4,3371.6,0.39]
[1768419125172,13.06121895,3373.1,3371.3,0.02966214]
[1768419125345,4.16732313,3372.8,3370.5,2.96788784]
[1768419125546,4.16732313,3372.8,3369.7,0.001]
[1768419125547,4.16732313,3372.2,3369.7,0.001]
[1768419125871,4.16732313,3371.1,3369.7,0.001]
[1768419126075,4.16732313,3370.7,3369.0,0.0231667]
[1768419126371,4.16732313,3370.3,3369.0,1e-08]
[1768419126546,0.396,3370.2,3369.0,1e-08]
[1768419126868,4.56332313,3370.2,3369.0,1e-08]
[1768419127369,4.16732313,3369.8,3369.0,1e-08]
[1768419127575,4.16732313,3369.8,3366.8,2.97015276]
[1768419127576,4.16732313,3369.4,3367.5,2.96949982]
[1768419127769,14.836355,3370.1,3367.6,0.29694998]
[1768419127770,4.56332313,3369.3,3367.6,0.29694998]
[1768419128075,4.16732313,3369.2,3367.6,0.29694998]
[1768419128248,4.56332313,3369.9,3367.7,0.02969385]
[1768419128447,14.56332313,3369.9,3368.0,2.96903748]
[1768419128762,4.16732313,3369.8,3368.2,2.96891938]
[1768419128968,4.16732313,3369.8,3367.0,2.96999818]
[1768419129167,4.16732313,3369.8,3367.1,0.39]
[1768419129466,10.10256959,3369.7,3367.3,2.96970599]
[1768419129765,6.66937406,3371.2,3367.4,3.20703623]
[1768419129766,20.690556,3370.9,3367.4,3.20703623]
[1768419129982,4.16732313,3370.6,3367.4,3.17733973]
[1768419130145,10.105,3370.3,3367.4,3.17733973]
[1768419130343,4.16732313,3370.4,3367.4,3.17733973]
[1768419130570,10.0,3370.9,3368.0,3.17733973]
[1768419130788,4.16732313,3372.4,3369.5,6.58600599]
[1768419131067,4.16732313,3371.8,3369.6,0.39]
[1768419131245,4.16732313,3371.6,3369.6,8.9031339]
[1768419131450,4.16732313,3371.6,3369.7,0.95898962]
[1768419131969,4.16732313,3371.6,3369.7,0.92931339]
[1768419132268,7.13328597,3371.6,3369.8,0.39]
[1768419132464,4.19693097,3371.5,3369.9,0.39]
[1768419132767,4.16732313,3371.5,3369.9,0.39]
[1768419133271,4.16732313,3371.3,3368.7,2.96850417]
[1768419133447,4.16732313,3371.1,3368.7,8.90551251]
[1768419133647,4.16732313,3371.1,3368.8,0.39]
[1768419134259,4.16732313,3370.7,3368.7,5.93700834]
[1768419134566,4.16732313,3370.7,3368.8,1.2805656]
[1768419135468,4.16732313,3370.5,3368.9,2.96832794]
[1768419135667,4.16732313,3370.5,3368.8,6.3268177]
[1768419136041,4.16732313,3370.5,3368.9,0.02968327]
[1768419136244,4.16732313,3370.5,3368.8,6.3268177]
[1768419136466,4.16732313,3370.5,3368.9,0.9295383]
[1768419137445,5.93350985,3370.7,3368.9,0.9295383]
[1768419137446,4.16732313,3370.3,3368.9,6.86612362]
[1768419137646,2.99652109,3370.6,3368.9,6.86612362]
[1768419137647,4.16732313,3371.0,3368.9,9.83445156]
[1768419137977,4.16732313,3371.0,3369.0,0.02968239]
[1768419139477,4.16732313,3371.0,3369.1,14.84075865]
[1768419139677,7.52921567,3371.7,3369.2,11.63648455]
[1768419139861,7.13321567,3371.7,3369.3,0.02967975]
[1768419140062,4.16732313,3371.7,3369.3,0.02967975]
[1768419140451,7.13319771,3371.7,3369.3,0.02967975]
[1768419140652,3.95707711,3371.6,3369.3,0.02967975]
[1768419140978,3.95707711,3371.6,3369.4,2.64772423]
[1768419141448,0.396,3372.3,3369.5,11.87119748]
[1768419141449,3.98553153,3371.5,3369.5,11.87119748]
[1768419142387,3.98553153,3371.5,3369.5,14.83899685]
[1768419142889,3.98553153,3371.5,3369.5,16.24361594]
[1768419143062,3.98553153,3371.5,3369.5,14.83899685]
[1768419143272,3.98553153,3371.5,3369.6,1.77834922]
[1768419143570,3.98553153,3371.5,3369.8,11.87014064]
[1768419143956,3.98753153,3372.1,3369.9,6.61568046]
[1768419144157,3.98753153,3372.1,3369.9,6.58600599]
[1768419144357,3.98553153,3372.0,3369.9,6.58600599]
[1768419144584,3.98553153,3372.0,3370.0,2.18136818]
[1768419145587,5.93310076,3372.1,3370.1,2.967271]
[1768419145588,3.98553153,3371.8,3370.1,2.967271]
[1768419145794,3.98553153,3371.6,3370.0,2.96732264]
[1768419146884,3.98553153,3371.6,3370.0,5.93468169]
[1768419147059,3.98553153,3371.6,3370.0,2.96732264]
[1768419147567,3.98553153,3371.4,3370.0,0.39]
[1768419147776,3.98553153,3371.2,3370.0,0.39]
[1768419148090,3.98553153,3371.2,3370.0,3.35733238]
[1768419148288,3.98553153,3371.2,3370.0,2.96733238]
[1768419148482,3.98553153,3371.2,3370.0,3.35733238]
[1768419149000,3.98553153,3371.2,3370.0,6.32469143]
[1768419149164,3.98553153,3371.2,3370.0,6.95716057]
[1768419149360,3.98553153,3371.2,3370.1,0.02967271]
[1768419149563,3.98553153,3371.1,3370.0,6.95716057]
[1768419149778,3.98553153,3371.1,3370.0,3.98980152]
[1768419150192,3.98553153,3371.1,3370.0,3.59977173]
[1768419150398,3.98553153,3371.1,3369.9,3.35741232]
[1768419150759,3.98553153,3371.1,3369.9,2.96741232]
[1768419151058,3.98553153,3371.1,3370.0,0.39]
[1768419151262,3.98553153,3370.9,3369.8,2.96753259]
[1768419151504,3.98553153,3370.7,3369.8,0.39]
[1768419151990,3.98553153,3370.7,3369.9,0.39]
[1768419152372,3.98553153,3371.2,3370.0,0.02967359]
[1768419152567,3.98553153,3371.2,3369.9,1.02260609]
[1768419152767,3.98553153,3371.2,3370.0,0.39]
[1768419153114,3.98553153,3371.2,3370.1,0.39]
[1768419153263,3.98553153,3371.0,3369.9,0.63260609]
[1768419153463,3.98553153,3371.0,3370.2,0.39]
[1768419153697,3.98553153,3371.0,3370.3,0.02967094]
[1768419153995,3.98553153,3371.0,3370.2,0.39]
[1768419154197,6.9520175,3371.0,3370.2,0.39]
[1768419154393,3.98553153,3371.0,3370.2,0.39]
[1768419155095,3.98553153,3371.0,3370.2,3.35717785]
[1768419155595,3.98553153,3370.9,3370.2,0.39]
[1768419155968,3.98553153,3370.8,3369.6,0.001]
[1768419156164,3.98553153,3370.8,3369.7,2.96757627]
[1768419156493,3.98553153,3370.8,3369.6,3.35863803]
[1768419156671,3.98553153,3370.8,3369.7,2.96761009]
[1768419157297,3.98553153,3370.8,3369.8,2.96753456]
[1768419157496,3.98553153,3370.8,3369.8,0.39]
[1768419157702,3.98553153,3370.7,3369.6,0.001]
[1768419157874,3.98553153,3370.7,3369.8,0.39]
[1768419158077,3.98553153,3370.7,3369.6,0.001]
[1768419158281,3.98553153,3370.7,3369.6,0.391]
[1768419158819,3.98553153,3370.7,3369.6,0.001]
[1768419159781,5.93345514,3370.8,3369.6,0.001]
[1768419159782,3.98553153,3370.5,3369.6,0.001]
[1768419162286,3.98553153,3370.4,3369.6,0.001]
[1768419162692,3.98553153,3370.4,3369.9,0.001]
[1768419166856,3.98553153,3370.3,3369.9,0.001]
[1768419167006,3.98553153,3370.3,3369.6,0.001]
[1768419168714,3.98553153,3370.1,3369.6,0.001]
[1768419169082,3.98553153,3370.6,3369.6,0.001]
[1768419173521,4.0193669,3370.5,3369.6,0.001]
[1768419173687,4.04897474,3370.5,3369.6,0.001]
[1768419173884,4.0193669,3370.5,3369.6,0.001]
[1768419174494,4.04897474,3370.5,3368.9,2.96831915]
[1768419174694,4.0193669,3370.3,3368.4,2.9687602]
[1768419174935,4.0193669,3370.1,3368.5,0.39]
[1768419175092,4.0193669,3369.9,3368.5,3.35868014]
[1768419175436,4.0193669,3369.9,3368.5,3.35864227]
[1768419176301,4.0193669,3369.9,3368.5,2.96864227]
[1768419177216,4.0193669,3369.7,3368.3,5.93769424]
[1768419177419,4.0193669,3369.7,3368.4,0.63276942]
[1768419178921,4.0193669,3369.7,3368.4,0.39]
[1768419179220,4.0193669,3369.5,3368.1,0.39]
[1768419179819,4.0193669,3369.5,3367.5,2.96949845]
[1768419180005,4.0193669,3369.5,3368.0,0.39]
[1768419180202,4.0193669,3369.5,3367.5,2.96949845]
[1768419180394,4.0193669,3369.5,3367.6,1.98043235]
[1768419180786,4.0193669,3369.5,3367.6,1.59043235]
[1768419180987,4.0193669,3369.4,3367.8,8.90789238]
[1768419181423,4.0193669,3370.2,3367.9,7.02521683]
[1768419181619,4.0193669,3370.1,3367.8,8.90789238]
[1768419181923,4.0193669,3369.9,3367.9,1.38577521]
[1768419182590,4.0193669,3369.9,3368.0,0.02969121]
[1768419182787,4.0193669,3369.9,3367.9,1.38577521]
[1768419182788,4.0193669,3369.9,3368.1,6.99552474]
[1768419183023,4.0193669,3369.9,3368.3,8.90657007]
[1768419183319,4.0193669,3369.8,3368.3,8.90657007]
[1768419183627,4.0193669,3369.8,3368.4,1.59020948]
[1768419184424,4.0193669,3369.8,3368.5,0.39]
[1768419185106,4.0193669,3369.6,3368.5,3.35860154]
[1768419185304,4.0193669,3369.6,3368.5,2.96860154]
[1768419185494,4.0193669,3369.6,3368.6,0.39]
[1768419186017,4.0193669,3369.6,3368.6,1.0227367]
[1768419186229,4.0193669,3369.6,3368.7,0.02968504]
[1768419186610,2.96911292,3370.3,3368.6,1.0227367]
[1768419187228,4.0213669,3370.3,3368.9,0.001]
[1768419187404,4.0213669,3370.3,3368.9,0.99392888]
[1768419187715,4.0193669,3370.1,3368.9,0.001]
[1768419190120,4.0193669,3369.9,3368.9,0.001]
[1768419192523,4.0193669,3369.7,3368.9,0.001]
[1768419192722,4.0193669,3369.5,3368.9,0.001]
[1768419193154,4.0193669,3369.5,3368.3,3.35882082]
[1768419193436,4.0193669,3369.5,3368.3,3.99160552]
[1768419193607,4.0193669,3369.5,3368.3,3.99160512]
[1768419193808,4.0193669,3369.5,3368.3,1.0227847]
[1768419194338,4.0193669,3369.5,3368.3,0.39]
[1768419194639,4.0193669,3369.9,3368.4,2.96876855]
[1768419195133,4.0193669,3369.9,3368.4,5.9375371]
[1768419195304,4.0193669,3369.9,3368.4,2.96876855]
[1768419195504,4.0193669,3369.9,3368.4,5.9375371]
[1768419195738,4.0193669,3369.9,3368.5,0.63275371]
[1768419196543,4.0193669,3369.7,3368.5,0.63275371]
[1768419196867,4.04897474,3369.6,3368.4,2.96872213]
[1768419197246,4.0193669,3369.6,3368.5,2.9686575]
[1768419198206,2.96753516,3369.8,3368.5,5.93733792]
[1768419198439,2.96745534,3369.9,3368.6,4.01287584]
[1768419198613,0.398,3370.3,3368.7,9.94988418]
[1768419198614,2.96718295,3370.2,3368.7,9.94988418]
[1768419198818,5.9343659,3370.2,3368.8,1.29184499]
[1768419201160,3.75045546,3370.2,3368.8,4.26018399]
[1768419202133,0.02960784,3370.1,3368.8,4.26018399]
[1768419202522,0.02960784,3370.1,3368.9,0.39]
[1768419202741,3.75045546,3370.2,3368.9,0.39]
[1768419202946,3.75045546,3370.2,3369.0,1.16325598]
[1768419203116,5.934542,3370.1,3369.0,1.16325598]
[1768419203438,5.934542,3370.1,3368.9,0.39]
[1768419203612,5.934542,3370.1,3368.9,3.35828617]
[1768419203814,9.68499746,3370.1,3368.9,3.35828617]
[1768419205812,6.71772646,3370.1,3368.9,3.35828617]
[1768419206017,9.68499746,3370.1,3368.9,3.35828617]
[1768419206533,2.96722052,3370.2,3369.0,0.63276677]
[1768419206944,5.93444104,3370.2,3369.0,0.63276677]
[1768419207619,5.93444104,3370.2,3368.9,7.37269504]
[1768419207620,3.75045546,3370.0,3368.9,3.35826291]
[1768419207816,3.75045546,3370.0,3368.9,0.39]
[1768419208148,2.96912727,3370.3,3369.0,4.01197687]
[1768419208344,5.93625454,3370.3,3369.0,4.01197687]
[1768419208729,2.96912727,3370.3,3369.0,4.01197687]
[1768419208924,0.002,3370.3,3369.1,1.06354361]
[1768419209133,0.002,3370.6,3369.5,4.00947139]
[1768419209339,2.96621481,3371.3,3369.8,4.00947139]
[1768419209645,5.93242962,3371.3,3369.9,0.39]
[1768419209846,5.93242962,3371.3,3370.0,2.96735905]
[1768419210046,2.96621481,3371.3,3370.1,1.03342638]
[1768419210218,6.71861269,3371.4,3370.1,1.03342638]
[1768419210420,3.75045546,3371.3,3370.1,1.03342638]
[1768419210926,0.002,3370.3,3370.1,1.03342638]
[1768419211133,3.75045546,3371.3,3370.1,1.03342638]
[1768419211926,6.71669179,3371.3,3370.2,2.96718295]
[1768419212132,6.71669179,3371.3,3370.2,3.70296528]
[1768419212543,6.71669179,3371.3,3370.2,6.67014823]
[1768419213555,6.71669179,3371.3,3370.2,3.70296528]
[1768419213853,3.75045546,3371.2,3370.2,3.70296528]
[1768419215051,6.71678816,3371.2,3370.2,3.70296528]
[1768419215249,6.71678816,3371.2,3370.2,0.73578233]
[1768419215554,3.75045546,3371.1,3370.3,0.39]
[1768419216358,6.71685837,3371.1,3370.3,0.39]
[1768419217150,3.75045546,3371.1,3370.3,0.39]
[1768419217459,3.75245546,3371.4,3370.3,3.35705219]
[1768419217765,6.71860626,3371.4,3370.3,3.35705219]
[1768419218430,3.75045546,3371.3,3370.3,0.39]
[1768419218827,3.75045546,3371.3,3370.4,0.39]
[1768419219626,3.75045546,3371.3,3369.3,3.9808019]
[1768419219955,3.75045546,3371.1,3369.2,2.96803719]
[1768419220143,3.75045546,3371.1,3369.5,2.96779221]
[1768419220344,3.75045546,3370.9,3369.6,0.02967711]
[1768419220659,3.75045546,3370.9,3369.3,0.39]
[1768419221526,3.75045546,3370.9,3369.1,3.35811724]
[1768419221726,3.75045546,3370.9,3369.1,3.9907594]
[1768419221938,3.75045546,3370.9,3369.2,2.96806344]
[1768419222459,3.75045546,3370.7,3369.2,2.96806344]
[1768419222655,3.75045546,3370.7,3369.2,5.93612707]
[1768419222960,3.75045546,3370.7,3369.3,0.02967975]
[1768419223333,3.75045546,3370.7,3369.3,0.6988449]
[1768419225158,3.75045546,3370.5,3369.4,2.96788745]
[1768419226060,3.75045546,3370.8,3369.4,9.89281259]
[1768419226358,2.96663378,3370.9,3369.5,3.98671568]
[1768419227732,2.96663378,3370.9,3369.6,5.9354226]
[1768419227932,2.96663378,3370.9,3369.7,1.28603477]
[1768419228143,0.02960784,3370.8,3369.7,1.28603477]
[1768419228360,3.75045546,3370.8,3369.7,1.28603477]
[1768419228556,3.75045546,3370.8,3369.6,2.9677113]
[1768419228736,3.7800633,3370.8,3369.1,0.63264216]
[1768419228933,3.7800633,3370.8,3369.2,0.39]
[1768419229125,3.75045546,3370.8,3369.2,3.35804691]
[1768419229528,3.75045546,3370.8,3369.3,2.96797213]
[1768419229732,3.75045546,3370.6,3369.3,3.35797213]
[1768419230747,4.0822296,3370.4,3369.3,3.35797213]
[1768419231272,4.0822296,3370.4,3369.3,0.39]
[1768419231777,4.0822296,3370.4,3369.3,3.35797236]
[1768419232368,4.0822296,3370.4,3369.3,0.39]
[1768419232548,4.0822296,3370.4,3369.3,2.96795289]
[1768419232736,2.96709491,3370.3,3369.3,3.35795289]
[1768419232940,2.96709491,3370.3,3369.3,3.99058015]
[1768419232941,4.0822296,3370.2,3369.3,3.99058015]
[1768419233170,2.96709491,3370.3,3369.3,3.99058015]
[1768419233476,2.96703794,3370.4,3369.3,3.99058015]
[1768419233664,2.96703794,3370.4,3369.3,4.0202599]
[1768419233979,2.96703794,3370.4,3369.3,6.98823544]
[1768419234181,2.96703794,3370.4,3369.3,6.95855569]
[1768419234474,2.96703794,3370.4,3369.4,0.02967887]
[1768419234847,2.96703794,3370.4,3369.4,2.99749677]
[1768419235048,2.96681518,3370.7,3369.6,0.001]
[1768419235266,0.002,3370.3,3369.6,0.03067711]
[1768419235442,0.002,3370.3,3369.6,0.001]
[1768419235980,0.002,3370.3,3369.6,0.03067711]
[1768419236899,0.002,3370.3,3369.6,0.001]
[1768419237677,4.11383744,3370.3,3369.6,0.001]
[1768419237879,4.0842296,3370.3,3369.6,0.001]
[1768419239082,2.96718295,3370.2,3369.6,0.001]
[1768419239462,4.0822296,3370.1,3369.6,0.001]